[Event "83rd Georgian Championship 2024"]
[Site "Tbilisi"]
[Date "2024.01.31"]
[Round "3.5"]
[White "Pantsulaia, Levan"]
[Black "Gagunashvili, Merab"]
[Result "1/2-1/2"]
[ECO "A14"]
[WhiteElo "2561"]
[BlackElo "2562"]
[Annotator "TA"]
[PlyCount "96"]
[EventDate "2024.01.29"]
[EventCountry "GEO"]
[SourceTitle "playchess.com"]
[Source "ChessBase"]
[SourceQuality "1"]
[TimeControl "5400+30"]

{[%evp 18,96,0,0,0,0,0,0,-4,-19,-11,-2,0,0,54,43,39,25,52,14,14,13,41,40,31,0,24,0,0,0,0,0,0,0,49,0,44,39,35,49,48,39,65,65,68,68,85,77,78,16,12,16,22,23,21,23,23,23,23,23,23,23,23,23,23,23,23,3,23,0,23,0,23,23,23,23,23,23,23,14,34]} 1. Nf3 {[%emt 0:00:12]} d5 {[%emt 0:00:06]} 2. c4 {[%emt 0:00:13]} e6 {[%emt 0:00:14]} 3. b3 {[%emt 0:03:01]} Nf6 {[%emt 0:00:13]} 4. g3 {[%emt 0:00:46]} Be7 {[%emt 0:00:12]} 5. Bg2 {[%emt 0:00:07]} O-O {[%emt 0:00:10]} 6. O-O {[%emt 0:00:07]} b6 {[%emt 0:00:24]} 7. Bb2 {[%emt 0:02:14]} Bb7 {[%emt 0:00:10]} 8. e3 {[%emt 0:00:19]} c5 {[%emt 0:00:32]} 9. Nc3 {[%emt 0:00:08]} dxc4 {[%emt 0:00:44]} 10. bxc4 {[%emt 0:00:09]} Ne4 {[%emt 0:00:17]} 11. Ne5 {[%emt 0:04:59]} Nxc3 {[%emt 0:00:58]} 12. Bxc3 {[%emt 0:00:09]} Qc7 {[%emt 0:05:00]} 13. f4 {[%emt 0:03:48]} Bxg2 {[%emt 0:14:39]} 14. Kxg2 {[%emt 0:00:16]} Nc6 {[%emt 0:04:11]} 15. Qf3 {[%emt 0:03:05]} Rac8 {[%emt 0:00:48]} (15... Nxe5 $11 16. fxe5 g6) 16. Nxc6 {[%emt 0:02:44]} Qxc6 {[%emt 0:00:10]} 17. a4 {[%emt 0:06:23]} Rfd8 {[%emt 0:08:31]} 18. e4 {[%emt 0:07:47]} f5 {[%emt 0:02:06]} 19. e5 {[%emt 0:05:09]} a5 {[%emt 0:02:11]} 20. Qxc6 {[%emt 0:00:44]} Rxc6 {[%emt 0:00:04]} 21. h3 {[%emt 0:02:47]} g5 {[%emt 0:16:34]} 22. g4 {[%emt 0:00:57]} fxg4 {[%emt 0:00:17]} 23. hxg4 {[%emt 0:01:15] [#] f5 would now be deadly.} gxf4 {[%emt 0:00:07]} 24. Rxf4 {[%emt 0:00:21]} Bg5 {[%emt 0:00:37]} 25. Rf2 {[%emt 0:00:31]} Rf8 {[%emt 0:09:38]} (25... Rd3 $11) 26. Rb1 {[%emt 0:03:36]} (26. Rxf8+ $14 Kxf8 27. Rb1) 26... Bd8 {[%emt 0:02:26]} 27. Rxf8+ {[%emt 0:03:03]} Kxf8 $14 {[%emt 0:00:07][%mdl 4096] Endgame. KRB-KRB} 28. d3 {[%emt 0:00:39]} Rc8 {[%emt 0:00:53]} 29. Bd2 {[%emt 0:02:36]} Kg7 {[%emt 0:02:16]} 30. Kf3 {[%emt 0:03:09] White is more active.} Rc7 {[%emt 0:06:49]} 31. Ke4 $1 {[%emt 0:10:24]} (31. Rxb6 $2 {is the wrong capture.} Rf7+ 32. Ke2 Bxb6 $19) 31... Rd7 {[%emt 0:01:21]} 32. Be3 {[%emt 0:00:46] Inhibits Rd4+.} Kf7 {[%emt 0:07:50]} 33. Rb2 {[%emt 0:04:27]} (33. Rh1 $16 Kg7 34. d4 cxd4 35. Bxd4) 33... Ke8 $1 $11 {[%emt 0:01:15]} 34. Rh2 {[%emt 0:06:23] aiming for Rh6.} Rg7 {[%emt 0:00:54]} 35. Kf3 {[%emt 0:01:07]} Rf7+ {[%emt 0:00:23]} 36. Ke2 {[%emt 0:00:59]} Rg7 {[%emt 0:00:55]} 37. Rh6 {[%emt 0:00:25]} Rg6 {[%emt 0:01:31]} 38. Rxg6 {[%emt 0:06:18]} hxg6 {[%emt 0:00:05] KB-KB} 39. Kf3 {[%emt 0:00:05]} Kd7 {[%emt 0:02:07]} 40. Ke4 {[%emt 0:05:07]} Be7 {[%emt 0:01:21]} 41. Bc1 {[%emt 0:01:01]} Ke8 {[%emt 0:01:40]} 42. Ba3 {[%emt 0:00:08]} Kd7 {[%emt 0:01:23]} 43. Bc1 {[%emt 0:01:43]} Ke8 {[%emt 0:00:04]} 44. Be3 {[%emt 0:02:02]} Kf7 {[%emt 0:03:31]} 45. Kf4 {[%emt 0:00:58]} Kf8 {[%emt 0:01:19]} 46. Kg3 {[%emt 0:01:44]} Kf7 {[%emt 0:00:12]} 47. Kh3 {[%emt 0:00:12]} Ke8 {[%emt 0:00:35]} 48. Bf2 {[%emt 0:01:03]} Kf7 {[%emt 0:00:37] Weighted Error Value: White=0.10 (very precise) /Black=0.09 (flawless) .  Mistake:       	White=2     	Black=2      Inaccurate:     	White=1     	Black=4      OK:         	White=12    	Black=14     Best:        	White=1     	Black=2      Strong:       	White=1     	Black=1} 1/2-1/2

[Event "83rd Georgian Championship 2024"]
[Site "Tbilisi"]
[Date "2024.02.01"]
[Round "4.1"]
[White "Kacharava, Nikolozi"]
[Black "Gagunashvili, Merab"]
[Result "1/2-1/2"]
[ECO "C65"]
[WhiteElo "2523"]
[BlackElo "2562"]
[Annotator "ChessBase"]
[PlyCount "68"]
[EventDate "2024.01.29"]
[EventCountry "GEO"]
[SourceTitle "playchess.com"]
[Source "ChessBase"]
[SourceQuality "1"]
[TimeControl "5400+30"]

1. e4 {[%emt 0:00:05]} e5 {[%emt 0:00:04]} 2. Nf3 {[%emt 0:00:18]} Nc6 {[%emt 0:00:10]} 3. Bb5 {[%emt 0:00:28]} Nf6 {[%emt 0:00:26]} 4. d3 {[%emt 0:02:18]} Bc5 {[%emt 0:00:08]} 5. c3 {[%emt 0:01:53]} O-O {[%emt 0:02:34]} 6. O-O {[%emt 0:00:13]} Re8 {[%emt 0:03:04]} 7. h3 {[%emt 0:13:09]} h6 {[%emt 0:11:22]} 8. Nbd2 {[%emt 0:02:30]} a6 {[%emt 0:07:17]} 9. Bxc6 {[%emt 0:06:13]} dxc6 {[%emt 0:01:38]} 10. Nc4 {[%emt 0:00:45]} Bd6 {[%emt 0:01:28]} 11. b3 {[%emt 0:04:37]} b5 {[%emt 0:04:10]} 12. Ne3 {[%emt 0:02:26]} Nd7 {[%emt 0:13:24]} 13. Qc2 {[%emt 0:03:41]} Nf8 {[%emt 0:02:41]} 14. a4 {[%emt 0:13:27]} Qf6 {[%emt 0:06:22]} 15. axb5 {[%emt 0:09:32]} cxb5 {[%emt 0:02:12]} 16. Nd5 {[%emt 0:01:48]} Qg6 {[%emt 0:03:22]} 17. Kh2 {[%emt 0:01:24]} Qh5 {[%emt 0:11:20]} 18. Rg1 {[%emt 0:04:31]} f5 {[%emt 0:04:03]} 19. c4 {[%emt 0:01:30]} Ne6 {[%emt 0:03:12]} 20. cxb5 {[%emt 0:10:37]} Bb7 {[%emt 0:01:46]} 21. Ba3 {[%emt 0:02:45]} axb5 {[%emt 0:02:20]} 22. Bxd6 {[%emt 0:00:13]} cxd6 {[%emt 0:00:24]} 23. Rxa8 {[%emt 0:01:51]} Bxa8 {[%emt 0:00:12]} 24. Ra1 {[%emt 0:08:00]} Bxd5 {[%emt 0:06:32]} 25. exd5 {[%emt 0:00:03]} Nf4 {[%emt 0:00:32]} 26. Qc6 {[%emt 0:02:33]} Rf8 {[%emt 0:01:02]} 27. Qxd6 {[%emt 0:05:25]} Nxh3 {[%emt 0:01:14]} 28. Nxe5 {[%emt 0:00:29]} Nxf2+ {[%emt 0:05:14]} 29. Kg1 {[%emt 0:00:06]} Qh1+ {[%emt 0:02:19]} 30. Kxf2 {[%emt 0:00:04]} Qxa1 {[%emt 0:00:03]} 31. Qe6+ {[%emt 0:00:11]} Kh7 {[%emt 0:00:13]} 32. Qg6+ {[%emt 0:00:19]} Kg8 {[%emt 0:00:41]} 33. Qe6+ {[%emt 0:00:02]} Kh7 {[%emt 0:00:06]} 34. Qg6+ {[%emt 0:00:03]} Kg8 {[%emt 0:02:36]} 1/2-1/2

[Event "83rd Georgian Championship 2024"]
[Site "Tbilisi"]
[Date "2024.02.01"]
[Round "4.2"]
[White "kiladze, Luka"]
[Black "Pantsulaia, Levan"]
[Result "1-0"]
[ECO "D00"]
[WhiteElo "2179"]
[BlackElo "2561"]
[Annotator "ChessBase"]
[PlyCount "91"]
[EventDate "2024.01.29"]
[EventCountry "GEO"]
[SourceTitle "playchess.com"]
[Source "ChessBase"]
[SourceQuality "1"]
[TimeControl "5400+30"]

1. d4 {[%emt 0:00:04]} Nf6 {[%emt 0:05:17]} 2. Nc3 {[%emt 0:00:03]} d5 {[%emt 0:00:34]} 3. Bf4 {[%emt 0:00:09]} a6 {[%emt 0:00:21]} 4. e3 {[%emt 0:00:05]} b5 {[%emt 0:00:43]} 5. Bd3 {[%emt 0:05:05]} e6 {[%emt 0:01:15]} 6. g4 {[%emt 0:05:10]} c5 {[%emt 0:04:31]} 7. g5 {[%emt 0:02:21]} Nfd7 {[%emt 0:00:22]} 8. a3 {[%emt 0:04:10]} Nc6 {[%emt 0:02:42]} 9. Nf3 {[%emt 0:01:43]} g6 {[%emt 0:10:19]} 10. h4 {[%emt 0:09:41]} h5 {[%emt 0:00:34]} 11. gxh6 {[%emt 0:04:07]} Bxh6 {[%emt 0:00:22]} 12. Bxh6 {[%emt 0:05:53]} Rxh6 {[%emt 0:00:12]} 13. Qd2 {[%emt 0:02:04]} Qf6 {[%emt 0:03:29]} 14. Be2 {[%emt 0:01:30]} Rh8 {[%emt 0:01:07]} 15. O-O-O {[%emt 0:03:36]} Bb7 {[%emt 0:00:12]} 16. Ng5 {[%emt 0:03:23]} O-O-O {[%emt 0:05:30]} 17. f4 {[%emt 0:02:54]} Qe7 {[%emt 0:03:57]} 18. Bg4 {[%emt 0:04:58]} Kb8 {[%emt 0:01:20]} 19. h5 {[%emt 0:08:07]} f5 {[%emt 0:10:34]} 20. Bf3 {[%emt 0:02:07]} gxh5 {[%emt 0:01:00]} 21. Bxh5 {[%emt 0:01:27]} Nf6 {[%emt 0:02:11]} 22. Qe2 {[%emt 0:03:03]} Rc8 {[%emt 0:05:00]} 23. dxc5 {[%emt 0:05:28]} Na5 {[%emt 0:05:35]} 24. Bf3 {[%emt 0:04:15]} Rxh1 {[%emt 0:02:04]} 25. Rxh1 {[%emt 0:00:09]} Nc4 {[%emt 0:01:48]} 26. Qd3 {[%emt 0:03:54]} Ne4 {[%emt 0:04:50]} 27. Rh7 {[%emt 0:05:46]} Qxc5 {[%emt 0:00:11]} 28. Nxe6 {[%emt 0:01:36]} Qb6 {[%emt 0:01:14]} 29. Nd4 {[%emt 0:05:21]} Qg6 {[%emt 0:07:09]} 30. Re7 {[%emt 0:03:29]} Nxa3 {[%emt 0:04:18]} 31. Nde2 {[%emt 0:02:57]} b4 {[%emt 0:03:17]} 32. bxa3 {[%emt 0:00:31]} bxc3 {[%emt 0:00:19]} 33. Bxe4 {[%emt 0:00:43]} dxe4 {[%emt 0:07:50]} 34. Qd4 {[%emt 0:00:14]} Ka8 {[%emt 0:00:34]} 35. Nxc3 {[%emt 0:01:03]} Qc6 {[%emt 0:02:21]} 36. Kb2 {[%emt 0:00:24]} a5 {[%emt 0:00:38]} 37. Rd7 {[%emt 0:00:34]} Rb8 {[%emt 0:00:59]} 38. Ka1 {[%emt 0:00:31]} Rg8 {[%emt 0:00:34]} 39. Rd8+ {[%emt 0:00:13]} Rxd8 {[%emt 0:00:35]} 40. Qxd8+ {[%emt 0:00:04]} Ka7 {[%emt 0:00:05]} 41. Qxa5+ {[%emt 0:00:05]} Ba6 {[%emt 0:00:08]} 42. Kb2 {[%emt 0:00:24]} Qf6 {[%emt 0:00:28]} 43. Qc5+ {[%emt 0:01:07]} Ka8 {[%emt 0:00:24]} 44. Kc1 {[%emt 0:00:27]} Qg7 {[%emt 0:00:56]} 45. Qd5+ {[%emt 0:00:56]} Bb7 {[%emt 0:00:34]} 46. Qa5+ {[%emt 0:00:05]} 1-0

[Event "83rd Georgian Championship 2024"]
[Site "Tbilisi"]
[Date "2024.02.01"]
[Round "4.3"]
[White "Jobava, Baadur"]
[Black "Quparadze, Giga"]
[Result "1-0"]
[ECO "B41"]
[WhiteElo "2591"]
[BlackElo "2491"]
[Annotator "ChessBase"]
[PlyCount "115"]
[EventDate "2024.01.29"]
[EventCountry "GEO"]
[SourceTitle "playchess.com"]
[Source "ChessBase"]
[SourceQuality "1"]
[TimeControl "5400+30"]

1. e4 {[%emt 0:01:09]} c5 {[%emt 0:04:24]} 2. Nf3 {[%emt 0:00:19]} e6 {[%emt 0:00:05]} 3. d4 {[%emt 0:00:22]} cxd4 {[%emt 0:00:05]} 4. Nxd4 {[%emt 0:00:06]} a6 {[%emt 0:00:12]} 5. c4 {[%emt 0:00:26]} Nf6 {[%emt 0:00:21]} 6. Nc3 {[%emt 0:00:16]} Bb4 {[%emt 0:00:06]} 7. Bd3 {[%emt 0:00:21]} Nc6 {[%emt 0:00:13]} 8. a3 {[%emt 0:00:12]} Bxc3+ {[%emt 0:00:59]} 9. bxc3 {[%emt 0:00:08]} d6 {[%emt 0:01:55]} 10. Nxc6 {[%emt 0:03:40]} bxc6 {[%emt 0:01:35]} 11. c5 {[%emt 0:00:41]} d5 {[%emt 0:01:05]} 12. exd5 {[%emt 0:03:07]} Qxd5 {[%emt 0:01:03]} 13. O-O {[%emt 0:01:10]} O-O {[%emt 0:00:49]} 14. Be3 {[%emt 0:03:29]} e5 {[%emt 0:02:58]} 15. c4 {[%emt 0:09:58]} Qe6 {[%emt 0:00:15]} 16. h3 {[%emt 0:00:38]} Qe7 {[%emt 0:07:40]} 17. Qa4 {[%emt 0:03:47]} Rd8 {[%emt 0:00:07]} 18. Rfd1 {[%emt 0:01:20]} Bd7 {[%emt 0:02:59]} 19. Rd2 {[%emt 0:01:43]} Be8 {[%emt 0:01:30]} 20. Rad1 {[%emt 0:00:16]} a5 {[%emt 0:03:28]} 21. Qc2 {[%emt 0:05:55]} h6 {[%emt 0:00:32]} 22. Qc3 {[%emt 0:00:24]} Rd7 {[%emt 0:04:43]} 23. Bc2 {[%emt 0:01:32]} Rxd2 {[%emt 0:00:06]} 24. Qxd2 {[%emt 0:06:52]} Ra7 {[%emt 0:04:19]} 25. Rb1 {[%emt 0:02:12]} Nd7 {[%emt 0:02:25]} 26. Qd6 {[%emt 0:06:13]} Qxd6 {[%emt 0:00:15]} 27. cxd6 {[%emt 0:00:06]} c5 {[%emt 0:00:05]} 28. Bf5 {[%emt 0:04:32]} Ra6 {[%emt 0:00:10]} 29. Bxc5 {[%emt 0:00:17]} Rc6 {[%emt 0:00:03]} 30. Be3 {[%emt 0:00:15]} Rxd6 {[%emt 0:00:23]} 31. c5 {[%emt 0:00:30]} Rc6 {[%emt 0:00:11]} 32. Be4 {[%emt 0:05:08]} Rc7 {[%emt 0:00:34]} 33. c6 {[%emt 0:00:06]} Nf6 {[%emt 0:00:12]} 34. Rb8 {[%emt 0:00:07]} Nxe4 {[%emt 0:03:00]} 35. Rxe8+ {[%emt 0:00:06]} Kh7 {[%emt 0:00:05]} 36. Rxe5 {[%emt 0:00:05]} Ng5 {[%emt 0:00:03]} 37. Bxg5 {[%emt 0:01:20]} hxg5 {[%emt 0:00:04]} 38. Rxg5 {[%emt 0:00:05]} Rxc6 {[%emt 0:00:03]} 39. Rxa5 {[%emt 0:00:06]} Rc1+ {[%emt 0:00:02]} 40. Kh2 {[%emt 0:00:06]} Rc3 {[%emt 0:00:14]} 41. a4 {[%emt 0:00:38]} Ra3 {[%emt 0:00:06]} 42. Rh5+ {[%emt 0:00:36]} Kg6 {[%emt 0:00:08]} 43. Rh4 {[%emt 0:00:05]} f5 {[%emt 0:00:04]} 44. Rf4 {[%emt 0:00:13]} Kg5 {[%emt 0:00:07]} 45. g3 {[%emt 0:00:04]} Kf6 {[%emt 0:00:25]} 46. h4 {[%emt 0:00:05]} g6 {[%emt 0:00:24]} 47. Kg2 {[%emt 0:00:05]} Ra1 {[%emt 0:00:54]} 48. Kf3 {[%emt 0:00:16]} Ra3+ {[%emt 0:00:06]} 49. Ke2 {[%emt 0:00:04]} Ke5 {[%emt 0:00:23]} 50. Kd2 {[%emt 0:00:06]} Rb3 {[%emt 0:00:15]} 51. Kc2 {[%emt 0:00:06]} Ra3 {[%emt 0:00:04]} 52. Kb2 {[%emt 0:00:07]} Rd3 {[%emt 0:00:04]} 53. a5 {[%emt 0:00:59]} Kd6 {[%emt 0:00:07]} 54. h5 {[%emt 0:00:54]} gxh5 {[%emt 0:00:06]} 55. Rxf5 {[%emt 0:00:05]} Ke6 {[%emt 0:00:06]} 56. Rxh5 {[%emt 0:02:36]} Rd2+ {[%emt 0:00:04]} 57. Kb3 {[%emt 0:00:03]} Rxf2 {[%emt 0:00:05]} 58. a6 {[%emt 0:43:23]} 1-0

[Event "83rd Georgian Championship 2024"]
[Site "Tbilisi"]
[Date "2024.02.01"]
[Round "4.4"]
[White "Paichadze, Luka"]
[Black "Sanikidze, Tornike"]
[Result "1/2-1/2"]
[ECO "B53"]
[WhiteElo "2503"]
[BlackElo "2449"]
[Annotator "ChessBase"]
[PlyCount "63"]
[EventDate "2024.01.29"]
[EventCountry "GEO"]
[SourceTitle "playchess.com"]
[Source "ChessBase"]
[SourceQuality "1"]
[TimeControl "5400+30"]

1. e4 {[%emt 0:00:05]} c5 {[%emt 0:00:26]} 2. Nf3 {[%emt 0:00:06]} d6 {[%emt 0:00:40]} 3. d4 {[%emt 0:00:08]} cxd4 {[%emt 0:00:09]} 4. Qxd4 {[%emt 0:00:07]} Nc6 {[%emt 0:03:59]} 5. Qe3 {[%emt 0:01:19]} g6 {[%emt 0:00:47]} 6. Be2 {[%emt 0:00:21]} Bg7 {[%emt 0:02:40]} 7. O-O {[%emt 0:00:21]} Nf6 {[%emt 0:01:06]} 8. Nc3 {[%emt 0:02:55]} O-O {[%emt 0:02:12]} 9. Rd1 {[%emt 0:00:19]} Ng4 {[%emt 0:05:54]} 10. Qg5 {[%emt 0:01:26]} Nge5 {[%emt 0:08:43]} 11. Nxe5 {[%emt 0:01:56]} Bxe5 {[%emt 0:00:16]} 12. Nd5 {[%emt 0:08:54]} e6 {[%emt 0:10:31]} 13. Qxd8 {[%emt 0:02:10]} Rxd8 {[%emt 0:00:11]} 14. Ne3 {[%emt 0:00:33]} Bg7 {[%emt 0:00:33]} 15. c3 {[%emt 0:01:29]} b6 {[%emt 0:16:15]} 16. Nc2 {[%emt 0:03:41]} Bb7 {[%emt 0:00:16]} 17. Bg5 {[%emt 0:01:07]} f6 {[%emt 0:00:24]} 18. Bf4 {[%emt 0:07:14]} Ne5 {[%emt 0:01:13]} 19. f3 {[%emt 0:00:15]} Kf7 {[%emt 0:05:45]} 20. a4 {[%emt 0:04:56]} d5 {[%emt 0:02:42]} 21. exd5 {[%emt 0:06:41]} Bxd5 {[%emt 0:00:12]} 22. a5 {[%emt 0:07:43]} Bf8 {[%emt 0:11:19]} 23. Nb4 {[%emt 0:19:22]} Bc4 {[%emt 0:05:51]} 24. Rxd8 {[%emt 0:10:24]} Rxd8 {[%emt 0:00:10]} 25. Bxe5 {[%emt 0:04:16]} Bxe2 {[%emt 0:00:23]} 26. Nc6 {[%emt 0:01:12]} Rd1+ {[%emt 0:04:13]} 27. Rxd1 {[%emt 0:00:15]} Bxd1 {[%emt 0:00:04]} 28. axb6 {[%emt 0:05:55]} axb6 {[%emt 0:00:13]} 29. Bd4 {[%emt 0:00:09]} b5 {[%emt 0:01:51]} 30. Nd8+ {[%emt 0:01:15]} Ke7 {[%emt 0:00:10]} 31. Bc5+ {[%emt 0:01:21]} Kxd8 {[%emt 0:00:17]} 32. Bxf8 {[%emt 0:00:05]} 1/2-1/2

[Event "83rd Georgian Championship 2024"]
[Site "Tbilisi"]
[Date "2024.02.01"]
[Round "4.5"]
[White "Mchedlishvili, Mikheil"]
[Black "Tsomaia, Nikoloz"]
[Result "1-0"]
[ECO "D37"]
[WhiteElo "2569"]
[BlackElo "2231"]
[Annotator "ChessBase"]
[PlyCount "57"]
[EventDate "2024.01.29"]
[EventCountry "GEO"]
[SourceTitle "playchess.com"]
[Source "ChessBase"]
[SourceQuality "1"]
[TimeControl "5400+30"]

1. d4 {[%emt 0:00:12]} d5 {[%emt 0:00:29]} 2. c4 {[%emt 0:01:38]} e6 {[%emt 0:00:26]} 3. Nf3 {[%emt 0:02:22]} Nf6 {[%emt 0:00:37]} 4. Nc3 {[%emt 0:01:27]} Be7 {[%emt 0:00:33]} 5. Bf4 {[%emt 0:01:13]} c5 {[%emt 0:05:15]} 6. dxc5 {[%emt 0:02:00]} Bxc5 {[%emt 0:00:26]} 7. e3 {[%emt 0:00:55]} Nc6 {[%emt 0:00:12]} 8. Qc2 {[%emt 0:01:17]} O-O {[%emt 0:02:42]} 9. Rd1 {[%emt 0:04:02]} Qa5 {[%emt 0:20:09]} 10. Be2 {[%emt 0:00:51]} dxc4 {[%emt 0:13:21]} 11. Bxc4 {[%emt 0:01:18]} a6 {[%emt 0:04:35]} 12. O-O {[%emt 0:12:13]} Be7 {[%emt 0:01:48]} 13. Ne4 {[%emt 0:05:08]} Nb4 {[%emt 0:11:54]} 14. Nxf6+ {[%emt 0:06:37]} gxf6 {[%emt 0:10:29]} 15. Qe2 {[%emt 0:08:55]} Qh5 {[%emt 0:03:58]} 16. Bd6 {[%emt 0:21:13]} Nc6 {[%emt 0:04:14]} 17. Bxe7 {[%emt 0:02:34]} Nxe7 {[%emt 0:01:07]} 18. Qd2 {[%emt 0:00:17]} Kh8 {[%emt 0:03:30]} 19. Be2 {[%emt 0:07:13]} Rg8 {[%emt 0:02:26]} 20. g3 {[%emt 0:04:30]} Ng6 {[%emt 0:05:43]} 21. Qd6 {[%emt 0:01:32]} b5 {[%emt 0:03:06]} 22. Qc7 {[%emt 0:03:22]} e5 {[%emt 0:03:47]} 23. Qxf7 {[%emt 0:00:44]} Rf8 {[%emt 0:00:10]} 24. Rd8 {[%emt 0:00:33]} Bg4 {[%emt 0:00:48]} 25. Rxa8 {[%emt 0:01:11]} Rxa8 {[%emt 0:00:01]} 26. Qxf6+ {[%emt 0:00:08]} Kg8 {[%emt 0:00:00]} 27. Bd1 {[%emt 0:02:35]} h6 {[%emt 0:00:02]} 28. Bb3+ {[%emt 0:00:54]} Kh7 {[%emt 0:00:12]} 29. Rc1 {[%emt 0:01:50]} 1-0

[Event "83rd Georgian Championship 2024"]
[Site "Tbilisi"]
[Date "2024.02.02"]
[Round "5.1"]
[White "Tsomaia, Nikoloz"]
[Black "Kacharava, Nikolozi"]
[Result "0-1"]
[ECO "C68"]
[WhiteElo "2231"]
[BlackElo "2523"]
[Annotator "RC"]
[PlyCount "115"]
[EventDate "2024.01.29"]
[EventCountry "GEO"]
[SourceTitle "playchess.com"]
[Source "ChessBase"]
[SourceQuality "1"]
[TimeControl "5400+30"]

1. e4 {[%emt 0:00:05]} e5 {[%emt 0:00:45]} 2. Nf3 {[%emt 0:00:08]} Nc6 {[%emt 0:00:18]} 3. Bb5 {[%emt 0:02:16]} a6 {[%emt 0:00:40]} 4. Bxc6 {[%emt 0:00:07]} dxc6 {[%emt 0:00:17]} 5. O-O {[%emt 0:00:07]} Qf6 {[%emt 0:00:30]} 6. d4 {[%emt 0:00:49]} exd4 {[%emt 0:00:40]} 7. Bg5 {[%emt 0:00:47]} Qd6 {[%emt 0:00:49]} 8. Nxd4 {[%emt 0:02:47]} Be7 {[%emt 0:00:52]} 9. Be3 {[%emt 0:05:02]} Nh6 {[%emt 0:02:54]} 10. f3 {[%emt 0:08:36]} Bd7 {[%emt 0:03:37]} 11. Qe2 {[%emt 0:12:55]} O-O-O {[%emt 0:08:10]} 12. Nd2 {[%emt 0:00:56]} f5 {[%emt 0:23:39]} 13. Nc4 {[%emt 0:08:42]} Qf6 {[%emt 0:04:14]} 14. e5 {[%emt 0:02:32]} Qh4 {[%emt 0:05:08]} 15. g3 {[%emt 0:14:52]} Qh5 {[%emt 0:12:23]} 16. e6 {[%emt 0:05:40]} Be8 {[%emt 0:00:13]} 17. Ne5 {[%emt 0:04:54]} f4 {[%emt 0:15:24]} 18. gxf4 {[%emt 0:00:28]} Rd6 {[%emt 0:03:09]} 19. Nc4 {[%emt 0:06:49]} Rd5 {[%emt 0:00:43]} 20. Kh1 {[%emt 0:04:28]} c5 {[%emt 0:01:54]} 21. Nb3 {[%emt 0:00:05]} Nf5 {[%emt 0:00:23]} 22. Bf2 {[%emt 0:00:46]} Bb5 {[%emt 0:00:53]} 23. Nba5 {[%emt 0:00:07]} Rf8 {[%emt 0:06:33]} 24. Qe4 {[%emt 0:02:56]} Bxc4 {[%emt 0:02:54]} 25. Nxc4 {[%emt 0:00:12]} Rd4 {[%emt 0:00:05]} 26. Qe2 {[%emt 0:02:04]} Rxf4 {[%emt 0:01:23]} 27. Rae1 {[%emt 0:08:27]} Rf6 {[%emt 0:00:47]} 28. Rg1 {[%emt 0:00:14]} Qxf3+ {[%emt 0:04:05]} 29. Qxf3 {[%emt 0:02:19]} Rxf3 {[%emt 0:00:01]} 30. Rg2 {[%emt 0:00:02]} Rf4 {[%emt 0:00:58]} 31. b3 {[%emt 0:00:25]} g6 {[%emt 0:00:33]} 32. Kg1 {[%emt 0:02:21]} Ng7 {[%emt 0:00:56]} 33. Bg3 {[%emt 0:00:20]} Rg4 {[%emt 0:00:31]} 34. Rd2 {[%emt 0:00:56]} Rd4 {[%emt 0:00:36]} 35. Rxd4 {[%emt 0:00:18]} cxd4 {[%emt 0:00:01]} 36. Bh4 {[%emt 0:00:01]} g5 {[%emt 0:00:10]} 37. Bxg5 {[%emt 0:00:23]} Rg6 {[%emt 0:00:13]} 38. h4 {[%emt 0:00:02]} Bxg5 {[%emt 0:00:22]} 39. hxg5 {[%emt 0:00:16]} Nxe6 {[%emt 0:00:04]} 40. Kf2 {[%emt 0:01:38]} Nxg5 {[%emt 0:00:54]} 41. Re8+ {[%emt 0:00:16]} Kd7 {[%emt 0:00:01]} 42. Rb8 {[%emt 0:00:14]} Rf6+ {[%emt 0:00:17]} 43. Ke2 {[%emt 0:00:06]} b5 {[%emt 0:01:11]} 44. Rg8 {[%emt 0:00:57]} Ne4 {[%emt 0:01:17]} 45. Rg7+ {[%emt 0:00:12]} Ke6 {[%emt 0:00:12]} 46. Na5 {[%emt 0:00:27]} Nc3+ {[%emt 0:00:51]} 47. Kd3 {[%emt 0:00:08]} c5 {[%emt 0:00:24]} 48. Nb7 {[%emt 0:00:55]} Rf3+ {[%emt 0:00:15]} 49. Kd2 {[%emt 0:00:01]} Ne4+ {[%emt 0:00:14]} 50. Ke2 {[%emt 0:00:04]} Re3+ {[%emt 0:00:33]} 51. Kd1 {[%emt 0:00:12]} Nc3+ {[%emt 0:00:50]} 52. Kd2 {[%emt 0:00:02]} Ne4+ {[%emt 0:00:20]} 53. Kd1 {[%emt 0:00:02]} c4 {[%emt 0:00:13]} 54. bxc4 {[%emt 0:01:05]} bxc4 {[%emt 0:00:04]} 55. Rxh7 {[%emt 0:01:26]} Nf2+ {[%emt 0:00:55]} 56. Kc1 {[%emt 0:00:01]} c3 {[%emt 0:00:35]} 57. Rh6+ {[%emt 0:00:24]} Ke5 {[%emt 0:00:38]} 58. Rh5+ {[%emt 0:00:06]} 0-1

[Event "83rd Georgian Championship 2024"]
[Site "Tbilisi"]
[Date "2024.02.02"]
[Round "5.2"]
[White "Sanikidze, Tornike"]
[Black "Mchedlishvili, Mikheil"]
[Result "1/2-1/2"]
[ECO "D43"]
[WhiteElo "2449"]
[BlackElo "2569"]
[Annotator "RC"]
[PlyCount "72"]
[EventDate "2024.01.29"]
[EventCountry "GEO"]
[SourceTitle "playchess.com"]
[Source "ChessBase"]
[SourceQuality "1"]
[TimeControl "5400+30"]

1. d4 {[%emt 0:00:52]} Nf6 {[%emt 0:00:18]} 2. c4 {[%emt 0:00:19]} e6 {[%emt 0:00:29]} 3. Nf3 {[%emt 0:00:17]} d5 {[%emt 0:00:39]} 4. Nc3 {[%emt 0:00:39]} c6 {[%emt 0:00:31]} 5. Bg5 {[%emt 0:00:16]} h6 {[%emt 0:00:59]} 6. Bh4 {[%emt 0:00:05]} dxc4 {[%emt 0:02:48]} 7. e4 {[%emt 0:00:04]} g5 {[%emt 0:00:33]} 8. Bg3 {[%emt 0:00:05]} b5 {[%emt 0:00:17]} 9. Be2 {[%emt 0:00:09]} Bb7 {[%emt 0:01:24]} 10. O-O {[%emt 0:00:31]} Nbd7 {[%emt 0:00:47]} 11. Ne5 {[%emt 0:00:06]} h5 {[%emt 0:03:23]} 12. Nxd7 {[%emt 0:01:47]} Qxd7 {[%emt 0:00:42]} 13. Qc1 {[%emt 0:00:05]} Rg8 {[%emt 0:16:12]} 14. Rd1 {[%emt 0:02:41]} Be7 {[%emt 0:07:21]} 15. Qc2 {[%emt 0:19:37]} h4 {[%emt 0:12:52]} 16. Be5 {[%emt 0:00:43]} g4 {[%emt 0:02:54]} 17. b3 {[%emt 0:20:32]} cxb3 {[%emt 0:01:08]} 18. Qxb3 {[%emt 0:00:28]} a6 {[%emt 0:01:20]} 19. a4 {[%emt 0:05:00]} Kf8 {[%emt 0:21:18]} 20. d5 {[%emt 0:12:47]} exd5 {[%emt 0:01:35]} 21. exd5 {[%emt 0:04:23]} Qf5 {[%emt 0:02:59]} 22. dxc6 {[%emt 0:15:22]} Bxc6 {[%emt 0:02:13]} 23. Bxf6 {[%emt 0:00:08]} Qxf6 {[%emt 0:07:34]} 24. axb5 {[%emt 0:00:14]} axb5 {[%emt 0:00:54]} 25. Rxa8+ {[%emt 0:01:40]} Bxa8 {[%emt 0:00:02]} 26. Nd5 {[%emt 0:00:31]} Bxd5 {[%emt 0:00:51]} 27. Qxd5 {[%emt 0:00:20]} Rg5 {[%emt 0:00:30]} 28. Qe4 {[%emt 0:06:21]} g3 {[%emt 0:04:24]} 29. fxg3 {[%emt 0:00:04]} hxg3 {[%emt 0:00:05]} 30. Rf1 {[%emt 0:00:28]} gxh2+ {[%emt 0:00:38]} 31. Kh1 {[%emt 0:00:02]} Qe5 {[%emt 0:01:55]} 32. Qh7 {[%emt 0:02:08]} Bf6 {[%emt 0:00:28]} 33. Bxb5 {[%emt 0:01:50]} Qxb5 {[%emt 0:04:49]} 34. Rxf6 {[%emt 0:00:15]} Qd5 {[%emt 0:00:41]} 35. Qh6+ {[%emt 0:02:40]} Kg8 {[%emt 0:00:54]} 36. Rf3 {[%emt 0:00:07]} Rg6 {[%emt 0:02:03]} 1/2-1/2